Cogmind - Beta 13 @@@ ROGUE MODE // 2024.04.25 @ 11:12:30 Player: Alphabethead Result: Destroyed by D-53 Grenadier with Mini Grenade Launcher Performance ------------- Evolutions (0) 0 Regions Visited (2) 400 Robots Destroyed (6) 30 Value Destroyed (84) 84 Prototype IDs (0) 0 Alien Tech Used (0) 0 Bonus (0) 0 TOTAL SCORE: 514 Bonus ------- None Cogmind --------- Core Integrity 0/250 Matter 289/300 Energy 248/250 System Corruption 0% Temperature Cool (16) Movement Hovering (240) Ox3 Location -10/Mines Parts ------- > --- POWER (1) -------- Ion Engine > --- PROPULSION (2) --- Hover Unit > --- UTILITY (2) ------ Medium Storage Unit Weapon Shielding > --- WEAPON (2) ------- Medium Laser Light Assault Rifle > --- INVENTORY (10) --- Aluminum Leg Large Storage Unit Signal Interpreter Light Assault Rifle Light Assault Rifle Datajack Mining Laser Peak State ------------ > --- POWER ------------ Ion Engine > --- PROPULSION ------- Aluminum Leg Aluminum Leg > --- UTILITY ---------- Medium Storage Unit Weapon Shielding > --- WEAPON ----------- Medium Laser Light Assault Rifle > --- INVENTORY -------- Light Ion Engine Aluminum Leg Hover Unit Large Storage Unit Signal Interpreter Small Laser Light Assault Rifle Light Assault Rifle Datajack Mining Laser [Rating: 8] Favorites ----------- Power Ion Engine Engine Ion Engine Propulsion Aluminum Leg Leg Aluminum Leg Hover Unit Hover Unit Flight Unit Flight Unit Utility Weapon Shielding Storage Medium Storage Unit Protection Weapon Shielding Weapon Medium Laser Energy Gun Medium Laser Ballistic Gun Light Assault Rifle Special Melee Weapon Datajack Build | -11 -10 -10 ------- Run | Yrd Mat Min Slots Evolved . | . . . Power . | . . . Propulsion . | . . . Utility . | . . . Weapon . | . . . Parts Attached 17 | 6 10 1 Power 1 | 1 . . Engine 1 | 1 . . Core . | . . . Reactor . | . . . Propulsion 7 | 2 4 1 Treads . | . . . Leg 4 | 2 2 . Wheel . | . . . Hover 1 | . . 1 Flight 2 | . 2 . Utility 3 | 1 2 . Device . | . . . Storage 2 | 1 1 . Processor . | . . . Hackware . | . . . Protection 1 | . 1 . Artifact . | . . . Weapon 6 | 2 4 . Energy Gun 2 | 1 1 . Energy Cannon . | . . . Ballistic Gun 2 | 1 1 . Ballistic Cannon . | . . . Launcher . | . . . Special Weapon . | . . . Impact Weapon . | . . . Slashing Weapon . | . . . Piercing Weapon . | . . . Special Melee Weapon 2 | . 2 . Unidentified Prototypes . | . . . Parts Lost 2 | . . 2 Power . | . . . Propulsion 2 | . . 2 Utility . | . . . Weapon . | . . . Highest Loss Streak 2 | . . 2 To Critical Strikes . | . . . Average Slot Usage (%) 97 | . 96 98 Engine 14 | . 14 14 Leg 27 | . 28 26 Storage 14 | . 14 14 Protection 11 | . 10 14 Energy Gun 13 | . 13 14 Ballistic Gun 13 | . 13 14 Naked Turns . | . . . Heaviest Build 19 | 13 19 19 Greatest Support 20 | 20 20 20 Greatest Overweight (x) 3 | 1 . 3 Average Overweight (x) . | . . . Largest Inventory Capacity 10 | 8 10 10 Average Capacity 9 | 6 9 10 Most Carried 10 | 4 10 9 Average Carried 6 | 1 6 8 Final Capacity 10 | 8 10 10 Final Carried 9 | 4 9 7 Class Distribution -------------------- 100% | Mutant Dominant Class ---------------- Mutant | -10/Materials Mutant | -10/Mines Resources | -11 -10 -10 ----------- Run | Yrd Mat Min Matter Collected 363 | 242 63 58 Remotely . | . . . Salvage Created 109 | . 51 58 Parts 12 | . 5 7 Haulers Intercepted . | . . . Recyclers Shooed . | . . . Parts Field Recycled . | . . . Retrieved Matter . | . . . Parts Self-Destructed . | . . . Prevented . | . . . Kills | -11 -10 -10 ------- Run | Yrd Mat Min Combat Hostiles Destroyed 6 | . 3 3 Guns 6 | . 3 3 Classes Destroyed 2 | . 2 . Swarmer 5 | . 2 3 Grunt 1 | . 1 . Best Kill Streak 3 | . 2 3 Combat Bots Only 3 | . 2 3 Max Kills in Single Turn 1 | . 1 1 Gunslinging . | . . . Exploded . | . . . Melee . | . . . Uniques/NPCs Destroyed . | . . . Combat | -11 -10 -10 -------- Run | Yrd Mat Min Hostile Shots Fired 36 | . 12 24 Missed 9 | . 5 4 Damage Taken 679 | . 60 619 Core 287 | . . 287 Absorbed by Shields . | . . . Redirected to Shielding 31 | . 2 29 Core Remaining (%) 100 | 100 . . Volleys Fired 13 | . 8 5 Largest 2 | . 2 2 Hottest 70 | . 70 70 Shots Fired 26 | . 16 10 Gun 26 | . 16 10 Cannon . | . . . Launcher . | . . . Special . | . . . Kinetic 13 | . 8 5 Thermal 13 | . 8 5 Explosive . | . . . Electromagnetic . | . . . Robot Hit Streak 6 | . 5 6 Robot Miss Streak 3 | . 3 2 Penetration Max . | . . . Secondary Targets 2 | . . 2 Max Gunslinging Chain 1 | . . 1 Shots Hit Robots 16 | . 11 5 Core Hits 7 | . 4 3 Critical Kills . | . . . Critical Parts Destroyed . | . . . Critical Strikes 1 | . 1 . Burn 1 | . 1 . Melee Attacks 3 | . 3 . Impact . | . . . Slashing . | . . . Piercing . | . . . Sneak Attacks 3 | . 3 . Combat Hostiles . | . . . Follow-up Attacks . | . . . Damage Inflicted 142 | . 85 57 Guns 142 | . 85 57 Cannons . | . . . Explosions . | . . . Melee . | . . . Ramming . | . . . Kinetic 32 | . 24 8 Thermal 110 | . 61 49 Explosive . | . . . Electromagnetic . | . . . Impact . | . . . Slashing . | . . . Piercing . | . . . Highest Corruption . | . . . Average Corruption . | . . . Corruption Purged . | . . . Corruption Blocked . | . . . Overload Shots . | . . . Overflow Damage . | . . . Projectiles . | . . . Explosions . | . . . Melee . | . . . Knockbacks . | . . . Impact . | . . . Kinetic . | . . . Secondary . | . . . Self-Inflicted Damage . | . . . Shots . | . . . Rammed . | . . . Targets Rammed 1 | . 1 . Kicked 1 | . 1 . Crushed . | . . . Highest Temperature 88 | . 88 80 Average Temperature 36 | . 34 39 Received Heat Transfer 18 | . 18 . Siege Activations . | . . . Robots Corrupted . | . . . Combat Hostiles . | . . . Parts Fried . | . . . Impact Corruptions . | . . . Robots Melted . | . . . Combat Hostiles . | . . . Parts Melted 1 | . 1 . Heat Transferred 407 | . 259 148 Parts Sabotaged . | . . . Parts Stolen . | . . . Parts Stripped . | . . . Power Chain Reactions . | . . . Alert | -11 -10 -10 ------- Run | Yrd Mat Min Peak Influence 97 | . 72 97 Initial 27 | . . 27 Average 36 | . 28 66 Maximum Alert Level . | . . . Low Security (%) 100 | 100 100 100 Level 1 . | . . . Level 2 . | . . . Level 3 . | . . . Level 4 . | . . . Level 5 . | . . . High Security . | . . . Max Security . | . . . Squads Dispatched 1 | . 1 . Investigation . | . . . Extermination . | . . . Reinforcement 1 | . 1 . Assault . | . . . Garrison . | . . . Intercept . | . . . Searches Triggered . | . . . Construction Impeded . | . . . Haulers Reinforced . | . . . Active Scanning Responses . | . . . Cargo Convoy Interrupts . | . . . Stealth | -11 -10 -10 --------- Run | Yrd Mat Min Distress Signals . | . . . Communications Jammed . | . . . Distress Signals . | . . . Times Spotted 13 | . 6 7 Peak Tracking Total 4 | . 1 4 Tactical Retreats . | . . . Traps | -11 -10 -10 ------- Run | Yrd Mat Min Traps Triggered . | . . . Indirectly . | . . . Trap Hack Attempts . | . . . Triggered . | . . . Disarmed . | . . . Reprogrammed . | . . . Reused . | . . . Traps Extracted . | . . . Installed . | . . . Triggered . | . . . Machines | -11 -10 -10 ---------- Run | Yrd Mat Min Machines Disabled . | . . . Max in Single Turn . | . . . Machines Repaired . | . . . Machines Dismantled . | . . . Machines Sabotaged . | . . . Overloaded Fab Kills . | . . . Hacking | -11 -10 -10 --------- Run | Yrd Mat Min Machines Accessed 4 | . 4 . Terminals 3 | . 3 . Fabricators . | . . . Repair Stations 1 | . 1 . Recycling Units . | . . . Scanalyzers . | . . . Garrison Access . | . . . Total Hacks 11 | . 11 . Successful 3 | . 3 . Failed 8 | . 8 . Catastrophic 2 | . 2 . Database Lockouts . | . . . Manual . | . . . Terminals 9 | . 9 . Fabricators . | . . . Repair Stations 2 | . 2 . Recycling Units . | . . . Scanalyzers . | . . . Garrison Access . | . . . Terminal Hacks 3 | . 3 . Branch Access Points 1 | . 1 . Registered Components 1 | . 1 . Zone Layout 1 | . 1 . Fabricator Hacks . | . . . Repair Station Hacks . | . . . Recycling Unit Hacks . | . . . Scanalyzer . | . . . Garrison Access Hacks . | . . . Unauthorized Hacks . | . . . Terminals . | . . . Fabricators . | . . . Repair Stations . | . . . Recycling Units . | . . . Scanalyzers . | . . . Garrison Access . | . . . Data Cores Recovered . | . . . Used . | . . . Hacking Detections 3 | . 3 . Full Trace Events . | . . . Feedback Events . | . . . Feedback Blocked . | . . . Robot Schematics Acquired . | . . . Robots Built . | . . . Authchips . | . . . Time . | . . . Total Robot Build Rating . | . . . Part Schematics Acquired . | . . . Parts Built . | . . . Authchips . | . . . Time . | . . . Total Part Build Rating . | . . . Parts Repaired . | . . . Time . | . . . Parts Recycled . | . . . Recycled Matter . | . . . Retrieved Matter . | . . . Retrieved Components . | . . . Parts Scanalyzed . | . . . Part Schematics Acquired . | . . . Parts Damaged . | . . . Bothacking | -11 -10 -10 ------------ Run | Yrd Mat Min Used RIF Installer . | . . . Robots Hacked 1 | . 1 . Non-combat 1 | . 1 . Combat . | . . . Robot Hacks Applied 2 | . 2 . parse_system 1 | . 1 . no_distress 1 | . 1 . Relay Couplers Released . | . . . Fabnet Peak Effective % . | . . . Robots Rewired . | . . . Allies Hacked . | . . . Hacks Repelled . | . . . Allies | -11 -10 -10 -------- Run | Yrd Mat Min Total Allies . | . . . Largest Group . | . . . Highest-Rated Group . | . . . Highest-Rated Ally . | . . . Total Orders . | . . . Ally Attacks . | . . . Total Damage . | . . . Kills . | . . . Allies Corrupted . | . . . Allies Melted . | . . . Intel | -11 -10 -10 ------- Run | Yrd Mat Min Robot Analysis Total . | . . . Derelict Logs Recovered . | . . . Drone Launches . | . . . Drone Recoveries . | . . . Exploration | -11 -10 -10 ------------- Run | Yrd Mat Min Turns Passed 920 | 58 632 230 Spaces Moved 666 | 44 449 173 Core 11 | 11 . . Treads . | . . . Legs 653 | 33 449 171 Wheels . | . . . Hover 2 | . . 2 Flight . | . . . Fastest Speed 50 | 50 120 120 Average Speed 119 | 103 120 122 Slowest Speed 240 | 120 120 240 Overloaded Moves . | . . . Propulsion Burnouts . | . . . Robots Hopped . | . . . Cave-ins Triggered . | . . . Exploration Rate (%) 31 | 5 48 42 Regions Visited 2 Branch Regions 1 Pre-discovered Areas . | . . . Known Exits Taken 1 | . 1 . Unknown Exits Taken 1 | 1 . . Scrap Searched . | . . . Spaces Dug . | . . . Terrain Destroyed . | . . . Melee . | . . . Projectile . | . . . AOE . | . . . Terrain Rammed . | . . . Walls Destroyed . | . . . Machines Disabled . | . . . Actions | -11 -10 -10 --------- Run | Yrd Mat Min Total 761 | 53 524 184 Wait 39 | . 35 4 Move 664 | 43 448 173 Hop . | . . . Pick Up 16 | 4 12 . Fast Attach 7 | 6 1 . Attach 1 | . . 1 Detach . | . . . Swap 9 | . 9 . Drop 8 | . 7 1 Fire 13 | . 8 5 Melee 3 | . 3 . Ram . | . . . Kick 1 | . 1 . Crush . | . . . Escape Stasis . | . . . Rewire . | . . . Trap . | . . . Miscellaneous . | . . . Route ------- -11/Scrapyard -10/Materials (discovered 2 exits: [*Mat] / *Min) -10/Mines History --------- Turn | Location | Event 18 | -11/Scrapyard | Discovered new exit (range 15) 59 | -11/Scrapyard | Entered Materials 108 | -10/Materials | Identified exit to Mines 177 | -10/Materials | Discovered new exit (range 9) 307 | -10/Materials | Build established: Mutant 691 | -10/Materials | Entered Mines 873 | -10/Mines | Assembled infested the area 907 | -10/Mines | Core integrity fell below 50% 915 | -10/Mines | Core integrity fell below 20% 921 | -10/Mines | Destroyed by D-53 Grenadier with Mini Grenade Launcher Last Messages --------------- 00849_ U-05 Engineer builds a Wall. 00854_ T-07 Excavator is excavating. 00873_ ALERT: Infestation in the mines, dispatching Demolisher response squad. 00883_ K-01 Serf collects debris. 00901_ C-30 ARC bursts open, deploying its payload. 00901_ D-53 Grenadier unfolds itself. 00902_ K-01 Serf collects debris. 00906_ The unstable cave ceiling collapses. 00907_ K-01 Serf collects debris. 00908_ Aluminum Leg destroyed. 00910_ Dropped Lgt. Ion Engine. 00911_ K-01 Serf collects debris. 00912_ The unstable cave ceiling collapses. 00914_ Aluminum Leg destroyed. 00915_ K-01 Serf collects debris. 00918_ The unstable cave ceiling collapses. 00919_ as-04834 sneak attacks. 00921_ U-05 Engineer lays Concrete. Map ----- +----------------------------------------------------+ | ?????????????????????????????????????????????????? | | ?????????????????????????????????????????????????? | | ?????????????????????????????????????????????????? | | ?????????????????????????? ?????????????????????? | | ???????????????????????## ???????????????????? | | ??????????????????????? ????????????????? | | ??????????????????????? ????????????????? | | ??????????????????????? ????????????????? | | ??????????????????????# #? #???????????????? | | ?????#####???????????## #??# ##??????????????? | | ?????# ##????????### a #???# #??????????????? | | ?????# ####????## #???## #??????????????? | | ?????# ###### k##?## #??????????????? | | ??????# "## ### ##?????###? #?? | | ???????# "% #????# ## ##? | | ####### ##### #??## ## | | #???# ## #???# # | | #########????# ##?# #???# # | | ??????????????# # a #### ##??# # | | ??????????????# d ## #### # | | ??????????????### #d ## # | | ???????????????# # | | ???????????????## ## #? | | ????????????????### #### #?? | | ??????????????????## #??## ###?? | | ???????????????????## @ ##??### ##???? | | ???????????????????## ##???## ##???? | | ??????????????????## #????## #???? | | ??????????????????# #????### #???? | | ??????????###?????## """ # #??????## ##???? | | ?????????## ##????# """u#### ##???????# #????? | | ?????????# ##???# """ ###?####????????# #????? | | ?????????# #???# """ ##????????????# #????? | | ?????????# ##?## ##???????????# #????? | | ?????????# ### #???????????# #????? | | ?????????# #???????????# #????? | | ?????????# ##???????????# #????? | | ?????????# ## #????????????# #????? | | ?????????# ## ### ##???????????# #????? | | ?????????## ### #?# #????????#### #????? | | ??????????## ##?# #?# #???????## # #????? | | ???????????####### #?## ####???## ##???? | | ??????????????# #??## #???# #???? | | ?????????????# #???# #??## #???? | | ?????????????# ???## ### #?## ##??? | | ?????????????# #????####?# ### #??? | | ?????????????# #?????????# ## #??? | | ?????????????## ##??######?# #??? | | ??????????????## #????# #?#=## ## ##??? | | ???????????????###?????# #?# ## #### ##???? | +----------------------------------------------------+ Best States ------------- Heat Dissipation 25 Energy Generation 10 Energy Capacity 250 Matter Stores 298 Matter Capacity 300 Sight Range 16 Terrain Scan Density 10 Weapon Shielding 33 Evasion (%) 55 Item Schematics ----------------- None Robot Schematics ------------------ None Fabricated ------------ Nothing Alien Tech Used ----------------- None Achievements -------------- None Challenges ------------ None Game ------ Seed MissileMetaDerivative Manual? 0 Play Time 00:12:47 Cumulative 11.5 hours Start 2024.04.25 @ 11:00:17 End 2024.04.25 @ 11:12:30 Sessions 1 Manual Loads 0 Difficulty Rogue Special Mode None Game No. 16 Rogue 16 Adventurer 0 Explorer 0 Win Type - Total 0 Types 0/0/0/0/0/0/0/0/0 Lore% 14 Gallery% 16 Achievement% 14 Wizard Run 0 Options --------- Layout 1 ASCII 0 Keyboard 1 Movement Arrows Keybinds 0 Fullscreen 1 Font 24/Smallcaps Map View 50x35 Zoom Use 0% Tactical HUD 1 Map Filters NONE Filters NONE Steam 1 RUN: d22aa624-ea60-4909-a7a7-958615bb2e42